bitfinex/quotes_ETHUSD_20241231
["timestamp","ask_amount","ask_price","bid_price","bid_amount"]
[1735653369397,2.91561,3429.9,3429.5,0.8323]
[1735653369696,3.207191,3429.8,3429.0,0.8323]
[1735653369853,2.9158,3429.6,3429.0,0.8323]
[1735653370255,5.98729213,3429.8,3429.0,0.8323]
[1735653370479,3.0,3429.5,3428.4,0.8323]
[1735653371000,3.0,3429.2,3428.4,0.8323]
[1735653371610,2.91649,3428.8,3428.4,0.8323]
[1735653371795,2.91627,3429.1,3428.4,0.8323]
[1735653372091,5.91592,3429.5,3428.4,0.8323]
[1735653372300,2.78007113,3429.5,3428.4,0.8323]
[1735653372451,2.91605,3429.3,3428.4,0.8323]
[1735653372654,3.7802,3429.7,3428.4,0.8323]
[1735653372855,0.7802,3430.3,3428.8,2.91644]
[1735653373157,2.91556,3429.9,3428.9,0.8323]
[1735653373485,2.9158,3429.6,3428.9,0.8323]
[1735653373892,2.91596,3429.5,3428.9,0.8323]
[1735653374416,3.0,3430.0,3428.9,0.8323]
[1735653374725,2.91604,3429.3,3428.9,0.8323]
[1735653374925,2.91587,3429.6,3428.9,0.8323]
[1735653375422,2.91595,3429.5,3428.9,0.8323]
[1735653376410,0.7802,3429.6,3428.9,0.8323]
[1735653376998,2.91621,3429.2,3428.9,0.8323]
[1735653377192,3.207831,3429.2,3428.9,0.8323]
[1735653377897,2.91623,3429.1,3428.9,0.8323]
[1735653378097,2.91623,3429.1,3428.1,0.8323]
[1735653379038,0.291621,3429.2,3428.1,0.8323]
[1735653379208,2.91594,3429.5,3428.1,0.8323]
[1735653379414,0.7802,3429.6,3428.1,0.8323]
[1735653379725,2.91555,3429.9,3428.9,2.78007113]
[1735653379925,0.7802,3430.3,3429.1,0.8323]
[1735653380224,2.91529,3430.2,3429.1,0.8323]
[1735653380521,2.91519,3430.3,3429.3,0.8323]
[1735653380828,2.91531,3430.2,3429.3,0.8323]
[1735653381124,3.206841,3430.2,3429.3,0.8323]
[1735653381329,2.91541,3430.1,3429.3,0.8323]
[1735653381725,0.291531,3430.2,3429.3,0.8323]
[1735653381907,2.91545,3430.0,3429.3,0.8323]
[1735653382805,3.7802,3430.7,3429.3,0.8323]
[1735653383042,3.0,3430.2,3429.3,3.74833]
[1735653383281,2.915,3430.6,3429.5,2.78007113]
[1735653383475,2.91434,3431.3,3430.2,0.7741]
[1735653383765,2.91434,3431.3,3430.4,0.7741]
[1735653383922,3.205774,3431.3,3430.4,0.7741]
[1735653384453,2.91502,3430.5,3429.4,2.91593]
[1735653384608,3.0,3430.8,3429.6,0.7741]
[1735653384803,0.7619,3431.1,3429.6,2.91578]
[1735653385143,0.7619,3431.1,3429.7,0.7741]
[1735653385484,2.91505,3430.5,3429.7,0.7741]
[1735653385665,2.91489,3430.7,3429.7,0.7741]
[1735653385864,0.97478951,3431.0,3429.7,0.7741]
[1735653385865,2.91472,3430.9,3429.7,0.7741]
[1735653386187,2.91487,3430.7,3429.7,0.7741]
[1735653386491,2.91501,3430.6,3429.7,0.7741]
[1735653386786,2.91512,3430.4,3429.7,0.7741]
[1735653386980,2.91521,3430.3,3429.7,0.7741]
[1735653387531,2.91518,3430.4,3429.7,0.7741]
[1735653387846,2.9152,3430.3,3429.7,0.7741]
[1735653388990,0.291501,3430.5,3429.7,0.7741]
[1735653389182,3.206541,3430.5,3429.7,0.7741]
[1735653389479,2.91524,3430.3,3429.7,0.7741]
[1735653390782,2.91512,3430.4,3429.7,0.7741]
[1735653390928,2.9152,3430.3,3429.7,0.7741]
[1735653391964,0.97478951,3431.0,3429.7,0.7741]
[1735653392230,2.91483,3430.8,3429.8,0.7741]
[1735653393044,2.91487,3430.7,3429.8,0.7741]
[1735653393240,0.97478951,3431.0,3429.8,0.7741]
[1735653393458,2.91522,3430.3,3429.8,0.7741]
[1735653393654,2.91502,3430.6,3429.8,0.7741]
[1735653395192,3.48786404,3430.9,3429.8,0.7741]
[1735653395504,2.91502,3430.5,3429.8,0.7741]
[1735653395831,2.91511,3430.4,3429.8,0.7741]
[1735653396829,0.291511,3430.4,3429.8,0.7741]
[1735653397091,2.91477,3430.8,3429.8,0.7741]
[1735653397268,2.91538,3430.1,3429.8,0.7741]
[1735653398292,2.9152,3430.3,3429.8,0.7741]
[1735653398847,2.91536,3430.2,3429.8,0.7741]
[1735653399044,2.91539,3430.1,3429.8,0.7741]
[1735653399245,2.91562,3429.8,3429.3,0.7593]
[1735653399527,2.91549,3430.0,3429.3,0.7593]
[1735653400801,2.91536,3430.1,3429.3,0.7593]
[1735653401014,2.91545,3430.0,3429.3,0.7593]
[1735653401148,0.3402634,3430.7,3429.3,0.7593]
[1735653401149,3.206946,3430.1,3429.3,0.7593]
[1735653401349,3.206946,3430.1,3428.4,0.7774]
[1735653401350,2.91621,3429.2,3428.4,0.7774]
[1735653401576,2.91596,3429.4,3428.4,0.7774]
[1735653401773,0.7695,3429.4,3428.4,0.7774]
[1735653401973,0.37695,3429.3,3428.4,0.7774]
[1735653402164,2.9165,3428.8,3428.4,0.7774]
[1735653402559,2.91633,3429.0,3428.4,0.7774]
[1735653404767,0.37695,3429.3,3428.4,0.7774]
[1735653405398,2.91617,3429.2,3428.4,0.7774]
[1735653405995,2.91603,3429.4,3428.4,0.7774]
[1735653406203,0.7695,3429.7,3428.4,0.7774]
[1735653406515,0.7695,3429.0,3427.7,0.7774]
[1735653406690,2.91655,3428.8,3427.7,0.7774]
[1735653406898,2.91681,3428.5,3427.9,0.7774]
[1735653408367,2.91627,3429.1,3427.9,0.7774]
[1735653408564,2.91662,3428.7,3427.9,0.7774]
[1735653409185,2.91666,3428.6,3427.9,0.7774]
[1735653409389,2.91681,3428.4,3427.9,0.7774]
[1735653409794,2.9163,3429.0,3427.9,0.7774]
[1735653409968,2.91664,3428.6,3427.9,0.7774]
[1735653411228,2.91672,3428.5,3427.9,0.7774]
[1735653411427,2.91651,3428.8,3427.9,0.7774]
[1735653411570,2.91658,3428.7,3428.0,0.7581]
[1735653411926,2.91665,3428.6,3428.0,0.7581]
[1735653412836,3.368563,3429.1,3428.0,0.7581]
[1735653413020,2.91691,3428.3,3428.0,0.7581]
[1735653414830,2.91668,3428.6,3428.0,0.7581]
[1735653415198,2.91674,3428.5,3428.0,0.7581]
[1735653415617,0.368563,3429.1,3428.0,0.7581]
[1735653415823,2.91654,3428.8,3428.0,0.7581]
[1735653416396,0.4054263,3429.0,3428.0,0.7581]
[1735653416397,2.91665,3428.6,3428.0,0.7581]
[1735653416606,3.0,3429.0,3428.0,0.7581]
[1735653416810,2.91656,3428.7,3428.0,0.7581]
[1735653417834,2.91681,3428.4,3428.0,0.7581]
[1735653419136,0.368576,3429.0,3428.0,0.7581]
[1735653419323,2.91693,3428.3,3428.0,0.7581]
[1735653419727,2.91658,3428.7,3428.0,0.7581]
[1735653419915,2.91682,3428.4,3428.0,0.7581]
[1735653420610,2.91668,3428.6,3428.0,0.7581]
[1735653421552,2.91674,3428.5,3428.0,0.7581]
[1735653422304,2.91681,3428.4,3428.0,0.7581]
[1735653423255,2.91693,3428.3,3428.0,0.7581]
[1735653423560,0.70858676,3428.3,3428.0,0.7581]
[1735653424125,2.9163,3429.0,3428.1,2.91705]
[1735653424329,2.9163,3429.0,3428.2,0.7581]
[1735653424531,0.98098917,3428.9,3428.3,0.367515]
[1735653424739,0.98098917,3428.9,3428.2,0.7581]
[1735653424946,0.27251322,3428.8,3428.2,0.7581]
[1735653425144,0.98098917,3428.8,3428.2,0.7581]
[1735653425668,0.98098917,3428.7,3428.4,0.7714]
[1735653425820,0.98098917,3428.7,3428.5,0.368829]
[1735653426019,0.70847595,3428.7,3428.5,0.368829]
[1735653426775,0.70847595,3429.1,3428.5,0.368829]
[1735653427260,0.70847595,3429.1,3428.6,0.7714]
[1735653427461,0.27249075,3429.0,3428.6,0.7714]
[1735653427646,0.27249075,3429.0,3428.6,1.1771119]
[1735653428050,0.27249075,3428.9,3428.6,1.1771119]
[1735653428515,0.27249075,3428.8,3428.6,1.1771119]
[1735653429236,0.27249075,3428.7,3428.6,0.7714]
[1735653429918,0.27249075,3428.7,3428.6,6.68804]
[1735653430735,0.27249075,3429.2,3429.1,2.91621]
[1735653430929,0.54552466,3429.2,3429.1,3.979231]
[1735653431682,0.27249075,3429.2,3429.1,6.979231]
[1735653432180,0.27297616,3430.4,3429.9,0.7714]
[1735653432873,0.54566953,3430.3,3429.9,0.7714]
[1735653433549,0.27297616,3430.2,3429.9,1.140096]
[1735653434103,0.27269337,3430.1,3430.0,0.7714]
[1735653434376,0.54566953,3430.1,3430.0,0.7714]
[1735653434557,0.27297616,3430.1,3430.0,0.7714]
[1735653434934,0.27297616,3430.1,3430.0,3.68685]
[1735653435544,2.91443,3431.2,3430.2,0.7714]
[1735653435857,0.70724935,3431.1,3430.2,1.14007]
[1735653436058,0.70724935,3431.1,3430.2,4.0553]
[1735653436369,0.2720207,3431.0,3430.2,4.0553]
[1735653436560,0.70725382,3431.0,3430.2,4.0553]
[1735653436769,0.2720207,3430.9,3430.2,4.0553]
[1735653437077,0.54403968,3430.9,3430.3,0.40553]
[1735653437288,0.2720207,3430.8,3430.3,3.3207]
[1735653437437,0.2720207,3430.8,3430.6,2.91488]
[1735653437637,0.2720207,3430.8,3430.7,0.7714]
[1735653437908,2.9141,3431.6,3430.7,0.7714]
[1735653438196,3.25092174,3431.6,3430.7,0.7714]
[1735653438355,0.70631101,3431.5,3430.7,0.7714]
[1735653438555,1.41212706,3431.5,3430.7,0.7714]
[1735653438982,1.41212706,3431.5,3430.8,2.91476]
[1735653439193,0.27165808,3431.4,3430.9,0.7714]
[1735653439556,0.27165808,3431.4,3430.9,1.140016]
[1735653439730,2.91395,3431.8,3430.9,1.140016]
[1735653440276,0.27128798,3431.7,3430.9,1.140016]
[1735653440503,3.45647787,3431.7,3430.9,1.140016]
[1735653440666,2.91442,3431.3,3430.9,0.7714]
[1735653440871,2.91442,3431.3,3430.6,0.7562]
[1735653441276,2.91425,3431.5,3430.6,0.7562]
[1735653441501,0.27114989,3431.4,3430.6,0.7562]
[1735653442098,2.91473,3430.9,3430.6,0.7562]
[1735653442399,2.91454,3431.1,3430.6,0.7562]
[1735653442601,3.45659,3431.3,3430.6,0.7562]
[1735653442770,0.27114989,3431.0,3430.6,0.7562]
[1735653443802,2.91429,3431.4,3430.6,0.7562]
[1735653443988,2.91435,3431.3,3430.6,0.7562]
[1735653444190,3.18540915,3431.3,3430.6,0.7562]
[1735653444600,0.27105671,3431.2,3430.6,0.7562]
[1735653444799,0.27105671,3431.2,3430.6,1.123337]
[1735653445003,3.18549671,3431.2,3430.6,1.123337]
[1735653445197,2.91444,3431.2,3430.6,1.123337]
[1735653445357,2.91444,3431.2,3430.6,0.7562]
[1735653445990,0.27106997,3431.1,3430.6,0.7562]
[1735653446496,2.91444,3431.2,3430.6,0.7562]
[1735653447703,2.91425,3431.5,3430.6,0.7562]
[1735653448402,0.27108213,3431.4,3430.6,0.7562]
[1735653448602,0.27108213,3431.4,3430.7,0.64512911]
[1735653448899,3.45650296,3431.4,3430.7,0.64512911]
[1735653449065,0.27108213,3431.3,3430.7,0.64512911]
[1735653449468,0.27115083,3431.2,3430.7,0.64512911]
[1735653451013,0.27115083,3431.3,3430.6,0.7562]
[1735653451307,0.27126759,3431.1,3430.6,0.7562]
[1735653451867,0.54241842,3431.0,3430.6,0.7562]
[1735653452396,0.27126759,3430.9,3430.6,0.7562]
[1735653452988,0.27126759,3431.3,3430.6,0.7562]
[1735653453369,0.27126759,3431.3,3430.6,1.40132911]
[1735653453571,0.70600625,3431.3,3430.6,0.7562]
[1735653453887,0.70647565,3431.2,3430.6,0.7562]
[1735653454268,0.97774324,3431.2,3430.6,0.7562]
[1735653454465,0.2717214,3431.1,3430.6,0.7562]
[1735653454676,0.2717214,3431.1,3430.7,2.91482]
[1735653455304,0.2717214,3431.0,3430.7,2.91482]
[1735653455572,0.97890916,3431.0,3430.7,2.91482]
[1735653455773,0.2717214,3430.9,3430.7,2.91482]
[1735653455974,0.2717214,3430.9,3430.6,1.40134511]
[1735653456202,0.27199529,3430.8,3430.6,1.40134511]
[1735653456711,0.27199529,3430.8,3430.7,0.70964062]
[1735653456897,0.2717214,3430.9,3430.7,2.91485]
[1735653457093,0.45332549,3431.4,3430.7,2.91485]
[1735653457465,0.45332549,3431.4,3430.6,0.7562]
[1735653457904,1.41605812,3431.3,3430.6,3.67111]
[1735653458513,1.41605812,3431.2,3430.6,0.7562]
[1735653459012,0.70802844,3431.1,3430.6,0.7562]
[1735653459185,1.41605812,3431.1,3430.6,0.7562]
[1735653459810,1.41605812,3431.0,3430.6,0.7562]
[1735653460173,0.70802844,3430.9,3430.6,0.7562]
[1735653460493,1.41605812,3430.9,3430.6,0.7562]
[1735653460902,0.70802844,3430.8,3430.6,1.40133111]
[1735653461075,1.41605812,3430.8,3430.6,1.40133111]
[1735653461688,0.98034755,3430.7,3430.6,1.40133111]
[1735653463413,0.98034755,3430.7,3430.6,4.31627111]
[1735653463607,0.54463774,3430.7,3430.6,4.31627111]
[1735653465188,0.54463774,3430.7,3430.6,1.40133111]
[1735653466113,0.54463774,3430.7,3430.6,4.31627111]
[1735653466315,0.27231863,3430.7,3430.6,4.31627111]
[1735653466989,1.14761481,3430.7,3430.6,4.31627111]
[1735653467580,1.42117614,3430.7,3430.6,1.40133111]
[1735653468824,0.98352805,3430.7,3430.6,1.40133111]
[1735653469133,0.54587996,3430.7,3430.6,0.7562]
[1735653472313,0.54587996,3430.7,3430.3,0.828]
[1735653472922,0.54587996,3430.6,3430.3,0.828]
[1735653473122,0.53923746,3430.6,3430.5,2.91502]
[1735653473501,0.26691883,3430.6,3430.5,2.91502]
[1735653473705,0.26691883,3430.6,3430.5,4.15885311]
[1735653474032,0.54052926,3430.6,3430.5,4.15885311]
[1735653475909,0.97832385,3430.6,3430.5,4.15885311]
[1735653477019,1.41611288,3430.6,3430.5,1.24383311]
[1735653478259,0.97833825,3430.6,3430.5,1.24383311]
[1735653478848,0.97833825,3430.6,3430.5,2.24325452]
[1735653479417,0.71141942,3430.6,3430.5,2.24325452]
[1735653480235,0.71141942,3430.6,3430.5,3.74277352]
[1735653480778,0.71141942,3430.6,3430.5,2.49894041]
[1735653481956,0.71141942,3430.6,3430.3,0.99942141]
[1735653482160,0.71141942,3430.6,3430.5,2.91502]
[1735653482526,0.71141942,3430.6,3430.5,3.68402]
[1735653483144,0.93432674,3431.3,3430.8,2.9147]
[1735653483351,0.93432674,3431.3,3430.8,3.67451414]
[1735653483788,0.4377304,3431.2,3430.8,3.67451414]
[1735653484231,0.4377304,3431.2,3430.8,0.75981414]
[1735653484634,6.12651465,3431.6,3430.8,0.75981414]
[1735653484635,0.4377304,3431.1,3430.8,0.75981414]
[1735653485176,0.4377304,3431.1,3430.9,2.91462]
[1735653485348,0.71129614,3431.0,3430.9,2.91462]
[1735653486776,0.71129614,3431.0,3430.9,3.91463952]
[1735653487374,0.71129614,3431.0,3430.9,1.00001952]
[1735653487675,0.71129614,3431.0,3430.9,4.69329952]
[1735653487969,1.83436099,3431.7,3431.1,0.7786]
[1735653488204,1.83436099,3431.7,3431.6,9.47276113]
[1735653488361,1.83436099,3431.7,3431.6,6.69269]
[1735653489092,2.44581465,3431.8,3431.7,5.914]
[1735653489294,2.44581465,3431.8,3431.7,15.21766486]
[1735653489636,0.7521,3433.1,3432.4,3.692]
[1735653490060,0.7521,3433.1,3432.6,2.78007113]
[1735653492767,0.7521,3433.1,3432.4,0.7786]
[1735653493680,0.7521,3433.1,3431.9,1.20569542]
[1735653493907,3.4629,3433.0,3431.9,1.20569542]
[1735653494109,0.7521,3432.2,3431.9,1.20569542]
[1735653494748,0.7521,3432.2,3431.4,3.55867113]
[1735653495148,2.91384,3431.9,3431.3,1.20569542]
[1735653495782,2.91384,3431.9,3431.1,3.55867113]
[1735653495944,0.27195212,3431.8,3431.1,3.55867113]
[1735653496573,3.621,3431.8,3431.1,3.55867113]
[1735653496772,0.3621,3431.7,3431.1,3.55867113]
[1735653496972,0.27195212,3431.7,3431.1,3.55867113]
[1735653497658,0.27195212,3431.7,3431.5,3.69274]
[1735653498050,0.70709434,3432.4,3431.5,3.69274]
[1735653498253,0.70709434,3432.4,3431.9,2.78007113]
[1735653498453,0.27195212,3432.3,3431.9,2.78007113]
[1735653499246,0.27195212,3432.2,3431.9,2.78007113]
[1735653499666,0.27195212,3432.1,3431.9,2.78007113]
[1735653500376,2.91341,3432.4,3431.6,2.78007113]
[1735653500897,0.70711153,3432.3,3431.6,2.78007113]
[1735653501493,0.27196597,3432.2,3431.6,2.78007113]
[1735653501871,0.27196597,3432.3,3431.6,2.78007113]
[1735653502063,0.27196597,3432.3,3431.5,0.7786]
[1735653502394,3.18546597,3432.3,3431.5,0.7786]
[1735653502592,0.27202592,3432.2,3431.5,0.7786]
[1735653502801,0.54399189,3432.2,3431.6,2.78007113]
[1735653503296,2.91315,3432.7,3431.6,2.78007113]
[1735653503458,2.9134,3432.5,3431.6,2.78007113]
[1735653503660,3.18548213,3432.4,3431.6,2.78007113]
[1735653503863,2.91352,3432.3,3431.6,2.78007113]
[1735653504098,2.91352,3432.3,3431.5,1.13446711]
[1735653504399,0.27203259,3432.2,3431.5,1.13446711]
[1735653504963,0.27203259,3432.2,3431.5,1.726987]
[1735653506205,1.05223259,3432.2,3431.5,1.726987]
[1735653506501,0.27203259,3432.1,3431.5,1.726987]
[1735653506868,2.91375,3432.0,3431.3,2.78007113]
[1735653507068,3.18578259,3432.0,3431.2,0.8174]
[1735653507566,0.27203259,3432.0,3431.0,2.78007113]
[1735653507767,0.7802,3431.6,3431.0,2.78007113]
[1735653507967,0.7802,3431.6,3431.0,3.36274566]
[1735653508390,0.27203259,3431.5,3431.0,3.36274566]
[1735653508613,0.27203259,3431.5,3431.0,0.58267453]
[1735653508764,0.27203259,3431.5,3430.7,3.98576655]
[1735653508965,0.27203259,3431.5,3430.4,1.20569542]
[1735653509238,2.91449,3431.2,3430.4,1.78311326]
[1735653509412,2.91449,3431.2,3430.4,1.20569542]
[1735653509704,2.91449,3431.2,3430.5,0.6833942]
[1735653509907,0.27203259,3431.1,3430.5,0.6833942]
[1735653510106,0.544363,3431.1,3430.5,0.6833942]
[1735653510965,0.27203259,3431.0,3430.5,0.6833942]
[1735653511718,2.91435,3431.3,3430.5,0.6833942]
[1735653512095,0.70774274,3431.5,3430.5,0.6833942]
[1735653512299,0.70774274,3431.2,3430.8,3.0]
[1735653512766,0.70774274,3431.2,3430.7,2.78007113]
[1735653512767,0.27236819,3431.4,3431.0,2.78007113]
[1735653513198,0.27203259,3431.3,3430.9,0.8174]
[1735653513638,0.7802,3431.2,3430.6,0.78736444]
[1735653513843,0.54441649,3431.2,3430.8,3.0]
[1735653514047,0.54441649,3431.2,3430.7,3.51855469]
[1735653514048,0.54441649,3431.2,3431.1,5.91451]
[1735653514335,0.7802,3432.0,3431.2,3.0]
[1735653514538,0.7802,3432.3,3431.5,3.0]
[1735653514896,0.70814435,3432.2,3431.5,3.0]
[1735653515143,0.98050167,3432.2,3431.3,0.8174]
[1735653515440,0.7802,3432.1,3431.0,0.8174]
[1735653515601,2.91399,3431.8,3431.0,0.8174]
[1735653516002,0.70814435,3431.7,3431.0,0.8174]
[1735653516776,0.54472053,3431.6,3431.2,3.0]
[1735653517048,0.54472053,3431.6,3431.2,5.91441]
[1735653517336,0.27236321,3431.6,3431.2,5.91441]
[1735653517639,0.27236321,3431.5,3431.3,0.95118811]
[1735653517843,0.27236321,3431.5,3431.2,3.0]
[1735653518336,0.70832193,3432.0,3431.2,3.0]
[1735653518839,0.27236321,3431.9,3431.2,5.91443]
[1735653519230,0.54484434,3431.9,3431.2,5.91443]
[1735653519539,0.27236321,3431.8,3431.2,5.91443]
[1735653519725,0.54484434,3431.8,3431.2,3.95119011]
[1735653519931,0.27236321,3431.7,3431.2,3.95119011]
[1735653520401,0.27248113,3431.6,3431.2,3.95119011]
[1735653520611,0.5450375,3431.6,3431.2,3.95119011]
[1735653520812,0.27255637,3431.6,3431.2,3.95119011]
[1735653521010,0.27255637,3431.5,3431.2,3.95119011]
[1735653521616,0.27255637,3431.4,3431.2,3.95119011]
[1735653521839,0.27255637,3431.4,3431.3,0.97536368]
[1735653523148,0.54543147,3431.4,3431.3,0.97536368]
[1735653523346,0.54543147,3431.4,3431.2,3.0]
[1735653524281,0.27255637,3431.3,3431.0,0.8174]
[1735653525054,0.27255637,3431.2,3431.0,0.8174]
[1735653525353,0.27255637,3431.2,3431.1,2.78007113]
[1735653525556,0.43684304,3431.7,3431.3,2.91434]
[1735653525758,0.43684304,3431.7,3431.6,5.78007113]
[1735653526061,3.67674,3432.4,3431.6,3.0]
[1735653526768,0.98274645,3432.3,3431.6,3.0]
[1735653527456,0.98274645,3432.2,3431.6,3.0]
[1735653528057,0.27297796,3432.1,3431.6,3.0]
[1735653528368,0.98274645,3432.1,3431.6,3.0]
[1735653528666,0.27297796,3432.0,3431.6,3.0]
[1735653528969,3.89651645,3432.0,3431.6,3.0]
[1735653529152,0.27297796,3431.9,3431.6,3.0]
[1735653529361,0.54596584,3431.9,3431.6,3.0]
[1735653529958,0.54596584,3431.8,3431.6,3.0]
[1735653530156,4.22318584,3431.8,3431.2,0.8156]
[1735653530332,0.27298788,3431.7,3431.2,0.8156]
[1735653530638,0.54596584,3431.7,3431.2,0.8156]
[1735653530969,0.27298788,3431.6,3431.2,0.8156]
[1735653531265,0.27298788,3431.5,3431.2,0.8156]
[1735653531473,0.27298788,3431.5,3431.1,3.0]
[1735653531667,0.27298788,3431.5,3431.1,4.00909281]
[1735653531969,0.27297796,3431.6,3431.1,4.00909281]
[1735653531970,0.27298788,3431.4,3431.1,4.00909281]
[1735653532132,0.54596584,3431.4,3431.1,4.00909281]
[1735653532870,0.54596584,3431.3,3431.1,4.00909281]
[1735653533236,0.27298788,3431.2,3431.1,4.00909281]
[1735653533971,0.54611414,3431.2,3431.1,3.0]
[1735653535473,0.54611414,3431.2,3431.0,5.78007113]
[1735653535843,0.27298788,3431.1,3431.0,5.78007113]
[1735653536475,0.54611414,3431.1,3431.0,5.76293376]
[1735653537759,0.54611414,3431.1,3431.0,8.67753376]
[1735653537969,0.27298788,3431.1,3431.0,9.73970503]
[1735653538154,0.27298788,3431.1,3431.0,6.82510503]
[1735653538903,0.27298788,3431.1,3431.0,9.32141546]
[1735653539205,0.7633,3431.8,3431.0,9.32141546]
[1735653539401,0.7633,3431.8,3431.0,8.25924419]
[1735653539942,0.7633,3431.8,3431.0,5.47917306]
[1735653540169,3.18731173,3431.7,3431.0,5.47917306]
[1735653540355,3.18731173,3431.7,3430.9,1.20569542]
[1735653540356,0.27325173,3431.7,3431.1,2.49631043]
[1735653540575,3.67223,3431.2,3431.1,2.49631043]
[1735653540751,4.88087,3431.2,3431.1,2.49631043]
[1735653541370,4.88087,3431.2,3430.2,2.49631043]
[1735653541647,0.7578,3430.4,3430.2,2.49631043]
[1735653542043,2.91493,3430.7,3430.2,2.49631043]
[1735653542264,0.27325173,3430.3,3430.2,2.49631043]
[1735653542478,0.27325173,3430.3,3430.2,2.86651102]
[1735653542679,0.27325173,3430.3,3430.2,3.68901102]
[1735653542897,0.27325173,3430.3,3430.2,4.19270059]
[1735653543252,0.27325173,3430.3,3430.2,10.24032059]
[1735653543448,1.83490879,3431.2,3431.1,6.60257113]
[1735653543690,1.83490879,3431.2,3431.1,9.51708113]
[1735653543891,0.7578,3432.0,3431.1,9.51708113]
[1735653544050,0.7578,3432.0,3431.2,2.91442]
[1735653544256,0.45476786,3431.7,3431.2,2.91442]
[1735653544482,0.45476786,3431.7,3431.1,6.60257113]
[1735653544691,0.45476786,3431.7,3431.1,7.04410988]
[1735653544864,0.61913337,3431.6,3431.1,7.04410988]
[1735653545253,0.6191406,3431.5,3431.1,7.04410988]
[1735653545454,1.05573604,3431.5,3431.1,7.04410988]
[1735653546069,0.6191406,3431.4,3431.1,7.04410988]
[1735653546390,0.6191406,3431.4,3431.2,0.37020059]
[1735653546592,3.67157,3432.0,3431.2,0.37020059]
[1735653547474,0.4366049,3431.9,3431.2,0.37020059]
[1735653547955,0.4366049,3431.8,3431.2,0.37020059]
[1735653548352,0.45478779,3431.5,3431.2,0.37020059]
[1735653548896,1.07393004,3431.4,3431.1,3.0]
[1735653549357,0.61914225,3431.3,3431.1,3.0]
[1735653549780,2.91451,3431.1,3430.8,1.98843435]
[1735653549978,2.91451,3431.1,3430.8,1.20733435]
[1735653550199,2.91451,3431.1,3430.5,5.97563328]
[1735653550200,2.91451,3431.1,3430.6,1.20733435]
[1735653550492,0.61914225,3431.2,3430.6,4.88726245]
[1735653550697,0.61914225,3431.0,3430.6,4.88726245]
[1735653551303,0.70951526,3430.9,3430.6,3.6799281]
[1735653551500,1.32876122,3430.9,3430.6,3.6799281]
[1735653551840,0.70951526,3430.8,3430.6,3.6799281]
[1735653552103,0.89209833,3430.7,3430.6,3.6799281]
[1735653553279,0.70951526,3430.7,3430.6,3.6799281]
[1735653554309,0.70951526,3430.7,3430.6,6.1780458]
[1735653554495,1.14607942,3430.7,3430.6,6.1780458]
[1735653554801,1.14607942,3430.7,3430.6,9.0929858]
[1735653555405,0.45478779,3431.6,3430.6,9.0929858]
[1735653555609,0.45478779,3431.6,3430.7,1.56723379]
[1735653556110,0.2728433,3431.5,3430.7,1.56723379]
[1735653556279,1.87356476,3431.5,3431.1,3.56117113]
[1735653556673,1.87356476,3431.5,3431.1,0.7811]
[1735653556887,1.60132079,3431.4,3431.1,3.56117113]
[1735653557092,1.60132079,3431.4,3431.2,0.64757111]
[1735653557496,0.70938439,3431.3,3431.2,0.64757111]
[1735653557740,1.60132079,3431.3,3431.2,0.64757111]
[1735653559009,1.16477655,3431.3,3431.2,0.64757111]
[1735653560116,1.60149565,3431.3,3431.2,0.64757111]
[1735653560602,1.60149565,3431.3,3431.2,0.37218111]
[1735653561543,1.41895183,3431.3,3431.2,0.37218111]
[1735653561687,1.41895183,3431.3,3431.0,3.50533624]
[1735653562344,0.2728433,3431.2,3431.0,3.50533624]
[1735653562647,1.16494693,3431.2,3431.0,3.50533624]
[1735653563008,0.70957274,3431.1,3431.0,3.50533624]
[1735653563205,1.41913199,3431.1,3431.0,3.50533624]
[1735653563614,0.98240255,3431.1,3431.0,3.50533624]
[1735653563821,1.16494922,3431.1,3431.0,4.81380507]
[1735653564518,1.16494922,3431.1,3431.0,5.81315515]
[1735653564717,1.78421998,3431.1,3431.0,5.81315515]
[1735653565244,1.60167331,3431.1,3431.0,5.81315515]
[1735653565554,1.41912704,3431.1,3431.0,5.81315515]
[1735653565723,1.41912704,3431.1,3431.0,7.31222963]
[1735653567323,0.41912704,3431.1,3431.0,7.31222963]
[1735653567518,0.41912704,3431.1,3431.0,4.39764963]
[1735653567726,2.91393,3431.8,3431.0,4.39764963]
[1735653567952,2.91393,3431.8,3431.0,3.0891808]
[1735653568256,2.91393,3431.8,3431.0,1.59010632]
[1735653569060,0.45489892,3431.4,3431.0,0.59075624]
[1735653569590,0.18254539,3431.3,3431.0,0.59075624]
[1735653569751,0.36509204,3431.3,3431.0,0.59075624]
[1735653570092,0.36509204,3431.3,3430.9,1.49907448]
[1735653570275,0.36509204,3431.2,3430.9,1.49907448]
[1735653571009,0.18254539,3431.1,3430.9,0.99958223]
[1735653571163,0.36509204,3431.1,3430.9,0.99958223]
[1735653571753,0.36509204,3431.1,3430.8,1.49941015]
[1735653571949,0.36509204,3431.0,3430.8,1.4186249]
[1735653572681,0.18254539,3430.9,3430.8,0.84217591]
[1735653572848,0.36509204,3430.9,3430.8,0.84217591]
[1735653573255,0.36509204,3430.9,3430.5,3.98740548]
[1735653573452,0.36509204,3430.9,3430.5,5.1817049]
[1735653573659,0.36509204,3430.9,3430.8,6.50994113]
[1735653574095,0.18254665,3430.9,3430.8,6.50994113]
[1735653574452,0.45542598,3431.4,3430.9,2.91463]
[1735653575071,0.63797362,3431.3,3430.9,2.91463]
[1735653575275,0.63797362,3431.3,3431.0,0.99976752]
[1735653575798,3.69415,3431.8,3431.0,0.99976752]
[1735653576158,3.69415,3431.8,3430.9,3.56561011]
[1735653577728,2.91416,3431.6,3430.8,4.80250548]
[1735653578095,2.91416,3431.6,3431.0,1.00004722]
[1735653578441,0.43728464,3431.5,3431.0,1.00004722]
[1735653578939,0.45552792,3431.1,3431.0,1.00004722]
[1735653579432,1.07537494,3431.1,3430.9,1.00004722]
[1735653579735,1.96851115,3431.1,3431.0,0.66949684]
[1735653580189,2.69732688,3431.1,3431.0,0.66949684]
[1735653580395,2.24179896,3431.1,3431.0,0.66949684]
[1735653580596,2.24179896,3431.1,3430.9,1.00004722]
[1735653580812,1.78628913,3431.1,3430.9,1.00004722]
[1735653581013,1.78628913,3431.1,3431.0,1.00004722]